Cogmind - Beta 14 --- EXPLORER MODE // 2024.12.29 @ 18:49:01 Player: jules Result: Destroyed by Y-45 Defender with Beam Rifle Performance ------------- Evolutions (1) 500 Regions Visited (3) 600 Robots Destroyed (76) 380 Value Destroyed (1553) 1553 Prototype IDs (2) 40 Alien Tech Used (0) 0 Bonus (89) 89 TOTAL SCORE: 3162 Bonus ------- High Alert Combat Kills 89 Cogmind --------- Core Integrity 0/400 Matter 87/400 Energy 21/100 System Corruption 2% Temperature Cool (54) Movement Rolling (110) Ox2 Location -9/Storage Parts ------- > --- POWER (2) -------- (None) > --- PROPULSION (2) --- Wheel > --- UTILITY (4) ------ Large Storage Unit Medium Matter Pod (fused) > --- WEAPON (2) ------- Beam Rifle > --- INVENTORY (15) --- Titanium Leg Huge Storage Unit Visual Processing Unit ECM Suite Improved Assault Rifle Improved Assault Rifle Datajack Heavy Hammer Peak State ------------ > --- POWER ------------ Ion Engine Improved Ion Engine > --- PROPULSION ------- Titanium Leg Titanium Leg > --- UTILITY ---------- Large Storage Unit Medium Matter Pod Weapon Shielding Shield Generator > --- WEAPON ----------- Improved Assault Rifle Mini Grenade Launcher > --- INVENTORY -------- Wheel Armored Wheel Large Storage Unit Visual Processing Unit ECM Suite Beam Rifle Heavy Assault Rifle Mini Grenade Launcher Mini Grenade Launcher Datajack Heavy Hammer [Rating: 20] Favorites ----------- Power Light Ion Engine Engine Light Ion Engine Propulsion Wheel Leg Titanium Leg Wheel Wheel Utility Weapon Shielding Device Shield Generator Storage Medium Matter Pod Protection Weapon Shielding Weapon Assault Rifle Energy Gun EM Pulse Gun Energy Cannon Heavy Particle Cannon Ballistic Gun Assault Rifle Ballistic Cannon Light Cannon Launcher Mini Grenade Launcher Impact Weapon Heavy Hammer Special Melee Weapon Datajack Build | -11 -10 -9 -9 ------- Run | Yrd Mat Mat Sto Slots Evolved 3 | . 1 2 . Power 1 | . 1 . . Propulsion . | . . . . Utility 2 | . . 2 . Weapon . | . . . . Parts Attached 51 | 7 5 29 10 Power 11 | 1 1 7 2 Engine 11 | 1 1 7 2 Core . | . . . . Reactor . | . . . . Propulsion 8 | 2 2 2 2 Treads . | . . . . Leg 2 | . . 2 . Wheel 6 | 2 2 . 2 Hover . | . . . . Flight . | . . . . Utility 8 | 2 . 5 1 Device 2 | . . 1 1 Storage 4 | . . 4 . Processor . | . . . . Hackware . | . . . . Protection 2 | 2 . . . Artifact . | . . . . Weapon 24 | 2 2 15 5 Energy Gun 6 | 1 2 1 2 Energy Cannon 4 | . . 4 . Ballistic Gun 6 | 1 . 4 1 Ballistic Cannon 1 | . . 1 . Launcher 5 | . . 3 2 Special Weapon . | . . . . Impact Weapon 1 | . . 1 . Slashing Weapon . | . . . . Piercing Weapon . | . . . . Special Melee Weapon 1 | . . 1 . Unidentified Prototypes 2 | . . . 2 Parts Lost 9 | . . . 9 Power 2 | . . . 2 Propulsion 2 | . . . 2 Utility 2 | . . . 2 Weapon 3 | . . . 3 Highest Loss Streak 2 | . . . 2 To Critical Strikes . | . . . . Average Slot Usage (%) 85 | . 94 95 75 Engine 14 | . 19 19 9 Leg 9 | . . 7 12 Wheel 9 | . 25 10 5 Device 5 | . . 4 8 Storage 15 | . . 13 20 Protection 12 | . 25 20 4 Energy Gun 4 | . 23 6 . Ballistic Gun 2 | . 1 5 . Launcher 9 | . . 4 14 Peak Build Rating 20 | 7 12 18 20 Average Rating 9 | 6 9 15 14 On Entrance 9 | . 7 12 18 Naked Turns . | . . . . Heaviest Build 39 | 9 14 36 39 Greatest Support 34 | 20 24 34 34 Greatest Overweight (x) 2 | . . 2 2 Average Overweight (x) . | . . . . Largest Inventory Capacity 15 | 5 5 15 15 Average Capacity 7 | 5 5 6 15 Most Carried 12 | 5 5 9 12 Average Carried 6 | 4 4 6 10 Final Capacity 15 | 5 5 15 15 Final Carried 9 | 5 5 9 8 Class Distribution -------------------- 100% | Hacker-Mutant Dominant Class ---------------- Hacker-Mutant | -10/Materials Hacker-Mutant | -9/Materials Hacker-Mutant | -9/Storage Resources | -11 -10 -9 -9 ----------- Run | Yrd Mat Mat Sto Matter Collected 1357 | 294 20 581 462 Remotely . | . . . . Salvage Created 2074 | 104 89 1078 803 Parts 139 | 13 4 72 50 Haulers Intercepted 4 | . . 1 3 Recyclers Shooed 1 | . . 1 . Parts Field Recycled . | . . . . Retrieved Matter . | . . . . Parts Self-Destructed . | . . . . Prevented . | . . . . Kills | -11 -10 -9 -9 ------- Run | Yrd Mat Mat Sto Combat Hostiles Destroyed 38 | 1 2 16 19 Guns 14 | 1 2 9 2 Cannons 2 | . . 2 . AOE 21 | . . 4 17 Classes Destroyed 11 | 3 . 7 1 Worker 11 | 1 . 8 2 Builder 6 | . . 2 4 Tunneler 2 | 2 . . . Hauler 4 | . . 1 3 Recycler 8 | . . 5 3 Operator 2 | . . 1 1 Watcher 5 | . . 3 2 Swarmer 13 | . . 10 3 Grunt 10 | 1 2 2 5 Duelist 1 | . . . 1 Sentry 14 | . . 4 10 Best Kill Streak 12 | 2 2 12 10 Combat Bots Only 7 | 1 2 3 7 Max Kills in Single Turn 3 | 1 1 3 3 Gunslinging 1 | . . 1 . Exploded 2 | . . 2 2 Melee . | . . . . Uniques/NPCs Destroyed . | . . . . Combat | -11 -10 -9 -9 -------- Run | Yrd Mat Mat Sto Hostile Shots Fired 186 | 1 4 67 114 Missed 56 | . 2 20 34 Damage Taken 1529 | 7 12 399 1111 Core 406 | . 6 91 309 Absorbed by Shields 327 | . . . 327 Redirected to Shielding 89 | . 1 49 39 Ignored by Resistances 963 | 4 8 261 690 Core Remaining (%) 98 | 100 97 . . Volleys Fired 129 | 8 5 67 49 Largest 2 | 2 2 2 2 Hottest 136 | 60 90 136 101 Shots Fired 231 | 16 10 130 75 Gun 135 | 16 10 104 5 Cannon 17 | . . 17 . Launcher 79 | . . 9 70 Special . | . . . . Kinetic 64 | 8 . 56 . Thermal 20 | . . 17 3 Explosive 79 | . . 9 70 Electromagnetic 68 | 8 10 48 2 Robot Hit Streak 26 | 4 7 26 18 Robot Miss Streak 5 | 1 1 5 1 Penetration Max . | . . . . Secondary Targets 3 | . 1 2 . Max Gunslinging Chain 1 | . 1 1 . Shots Hit Robots 160 | 11 8 99 42 Core Hits 107 | 5 2 44 56 Critical Kills . | . . . . Critical Parts Destroyed . | . . . . Critical Strikes 2 | . 1 . 1 Burn 1 | . . . 1 Corrupt 1 | . 1 . . Melee Attacks 4 | . . 4 . Impact 1 | . . 1 . Slashing . | . . . . Piercing . | . . . . Sneak Attacks 3 | . . 3 . Combat Hostiles . | . . . . Follow-up Attacks . | . . . . Damage Inflicted 4126 | 140 97 1818 2071 Guns 1329 | 140 97 1004 88 Cannons 291 | . . 291 . Explosions 2448 | . . 471 1977 Melee 47 | . . 47 . Ramming 11 | . . 5 6 Kinetic 632 | 75 . 557 . Thermal 389 | . . 345 44 Explosive 2378 | . . 401 1977 Electromagnetic 669 | 65 97 463 44 Impact 47 | . . 47 . Slashing . | . . . . Piercing . | . . . . Highest Corruption 2 | . . . 2 Average Corruption 2 | . . . 2 Corruption Purged . | . . . . Corruption Blocked . | . . . . Effects 9 | . . . 9 Message Errors 3 | . . . 3 Matter Fused 1 | . . . 1 Energy Discharges 1 | . . . 1 Parts Fused 1 | . . . 1 Data Loss (minor) 2 | . . . 2 Data Loss (major) 1 | . . . 1 Overload Shots . | . . . . Overflow Damage 175 | . . 30 145 Projectiles 2 | . . 2 . Explosions 166 | . . 21 145 Melee 7 | . . 7 . Knockbacks 3 | . . 3 . Impact 2 | . . 2 . Kinetic 1 | . . 1 . Secondary . | . . . . Self-Inflicted Damage 526 | . . 100 426 Shots 28 | . . 4 24 Rammed . | . . . . Targets Rammed 4 | . . 1 3 Kicked 4 | . . 1 3 Crushed . | . . . . Highest Temperature 308 | . 132 308 62 Average Temperature 65 | . 58 80 21 Received Heat Transfer 446 | 6 12 105 323 Siege Activations . | . . . . Robots Corrupted 2 | . . 2 . Combat Hostiles 1 | . . 1 . Parts Fried 7 | . 1 6 . Impact Corruptions 1 | . . 1 . Robots Melted . | . . . . Combat Hostiles . | . . . . Parts Melted 1 | . . 1 . Heat Transferred 729 | . . 544 185 Parts Sabotaged . | . . . . Parts Stolen . | . . . . Parts Stripped . | . . . . Power Chain Reactions 1 | . . 1 . Alert | -11 -10 -9 -9 ------- Run | Yrd Mat Mat Sto Peak Influence 537 | 20 66 406 537 Initial 29 | . 4 19 29 Average 93 | 1 50 209 325 Maximum Alert Level 2 | . . 2 2 Low Security (%) 76 | 100 100 41 21 Level 1 16 | . . 56 43 Level 2 6 | . . 1 35 Level 3 . | . . . . Level 4 . | . . . . Level 5 . | . . . . High Security . | . . . . Max Security . | . . . . Squads Dispatched 6 | . . . 6 Investigation . | . . . . Extermination . | . . . . Reinforcement . | . . . . Assault . | . . . . Garrison 6 | . . . 6 Intercept . | . . . . Searches Triggered . | . . . . Construction Impeded . | . . . . Haulers Reinforced . | . . . . Active Scanning Responses . | . . . . Cargo Convoy Interrupts . | . . . . Stealth | -11 -10 -9 -9 --------- Run | Yrd Mat Mat Sto Distress Signals 2 | . . 2 . Communications Jammed . | . . . . Distress Signals . | . . . . Times Spotted 49 | 1 3 22 23 Peak Tracking Total 4 | 1 2 3 4 Tactical Retreats 2 | . . 1 1 Traps | -11 -10 -9 -9 ------- Run | Yrd Mat Mat Sto Traps Triggered 5 | . . 3 2 Indirectly . | . . . . Trap Hack Attempts . | . . . . Triggered . | . . . . Disarmed . | . . . . Reprogrammed . | . . . . Reused . | . . . . Traps Extracted . | . . . . Installed . | . . . . Triggered . | . . . . Machines | -11 -10 -9 -9 ---------- Run | Yrd Mat Mat Sto Machines Disabled 18 | . 1 7 10 Max in Single Turn 2 | . 1 2 2 Machines Repaired . | . . . . Machines Dismantled . | . . . . Machines Sabotaged . | . . . . Overloaded Fab Kills . | . . . . Hacking | -11 -10 -9 -9 --------- Run | Yrd Mat Mat Sto Machines Accessed 6 | . 2 1 3 Terminals 6 | . 2 1 3 Fabricators . | . . . . Repair Stations . | . . . . Recycling Units . | . . . . Scanalyzers . | . . . . Garrison Access . | . . . . Total Hacks 12 | . 3 1 8 Successful 11 | . 3 1 7 Failed 1 | . . . 1 Catastrophic . | . . . . Database Lockouts . | . . . . Manual 2 | . 1 . 1 Terminals 12 | . 3 1 8 Fabricators . | . . . . Repair Stations . | . . . . Recycling Units . | . . . . Scanalyzers . | . . . . Garrison Access . | . . . . Terminal Hacks 11 | . 3 1 7 Record 3 | . . . 3 Part Schematic 1 | . . . 1 Open Door 1 | . . . 1 Alert Level 2 | . 1 1 . Dispatch Records 1 | . 1 . . Security Status 1 | . . . 1 Hauler Manifests 1 | . . . 1 Zone Layout 1 | . 1 . . Fabricator Hacks . | . . . . Repair Station Hacks . | . . . . Recycling Unit Hacks . | . . . . Scanalyzer . | . . . . Garrison Access Hacks . | . . . . Unauthorized Hacks . | . . . . Terminals . | . . . . Fabricators . | . . . . Repair Stations . | . . . . Recycling Units . | . . . . Scanalyzers . | . . . . Garrison Access . | . . . . Data Cores Recovered 2 | . . 1 1 Used 1 | . . . 1 Hacking Detections 5 | . 2 1 2 Full Trace Events . | . . . . Feedback Events . | . . . . Feedback Blocked . | . . . . Robot Schematics Acquired . | . . . . Robots Built . | . . . . Authchips . | . . . . Time . | . . . . Total Robot Build Rating . | . . . . Part Schematics Acquired 1 | . . . 1 Parts Built . | . . . . Authchips . | . . . . Time . | . . . . Total Part Build Rating . | . . . . Parts Repaired . | . . . . Time . | . . . . Parts Recycled . | . . . . Recycled Matter . | . . . . Retrieved Matter . | . . . . Retrieved Components . | . . . . Parts Scanalyzed . | . . . . Part Schematics Acquired . | . . . . Parts Damaged . | . . . . Bothacking | -11 -10 -9 -9 ------------ Run | Yrd Mat Mat Sto Used RIF Installer . | . . . . Robots Hacked . | . . . . Non-combat . | . . . . Combat . | . . . . Robot Hacks Applied . | . . . . Relay Couplers Released . | . . . . Fabnet Peak Effective % . | . . . . Robots Rewired . | . . . . Allies Hacked . | . . . . Hacks Repelled . | . . . . Allies | -11 -10 -9 -9 -------- Run | Yrd Mat Mat Sto Total Allies . | . . . . Largest Group . | . . . . Highest-Rated Group . | . . . . Highest-Rated Ally . | . . . . Total Orders . | . . . . Ally Attacks . | . . . . Total Damage . | . . . . Kills . | . . . . Allies Corrupted . | . . . . Allies Melted . | . . . . Intel | -11 -10 -9 -9 ------- Run | Yrd Mat Mat Sto Robot Analysis Total . | . . . . Derelict Logs Recovered . | . . . . Drone Launches . | . . . . Drone Recoveries . | . . . . Exploration | -11 -10 -9 -9 ------------- Run | Yrd Mat Mat Sto Turns Passed 5807 | 3662 201 909 1035 Spaces Moved 2096 | 724 215 570 587 Core 18 | 18 . . . Treads . | . . . . Legs 511 | . . 209 302 Wheels 1567 | 706 215 361 285 Hover . | . . . . Flight . | . . . . Fastest Speed 50 | 50 80 90 85 Average Speed 105 | 79 81 109 144 Slowest Speed 200 | 80 90 200 200 Overloaded Moves . | . . . . Propulsion Burnouts . | . . . . Robots Hopped . | . . . . Cave-ins Triggered 1 | . . . 1 Exploration Rate (%) 37 | 32 22 38 56 Regions Visited 3 Branch Regions 1 Pre-discovered Areas . | . . . . Known Exits Taken 3 | 1 1 1 . Unknown Exits Taken . | . . . . Scrap Searched . | . . . . Spaces Dug . | . . . . Terrain Destroyed 438 | . . 82 356 Melee . | . . . . Projectile . | . . . . AOE 438 | . . 82 356 Terrain Rammed . | . . . . Walls Destroyed . | . . . . Machines Disabled . | . . . . Actions | -11 -10 -9 -9 --------- Run | Yrd Mat Mat Sto Total 5453 | 3794 232 726 701 Wait 3099 | 3047 . 15 37 Move 2093 | 723 214 569 587 Hop . | . . . . Pick Up 41 | 9 2 22 8 Fast Attach 7 | 3 2 2 . Attach 21 | 4 . 11 6 Detach 3 | . . 1 2 Swap 23 | . 3 16 4 Drop 29 | . 6 18 5 Fire 129 | 8 5 67 49 Melee 4 | . . 4 . Ram . | . . . . Kick 4 | . . 1 3 Crush . | . . . . Escape Stasis . | . . . . Rewire . | . . . . Trap . | . . . . Miscellaneous . | . . . . Route ------- -11/Scrapyard -10/Materials -9/Materials (discovered 3 exits: *Min / *Sto x2) -9/Storage History --------- Turn | Location | Event 2 | -11/Scrapyard | Met Revision 17 204 | -11/Scrapyard | Identified exit to Materials 204 | -11/Scrapyard | Discovered exit to Materials (range 8) 3663 | -11/Scrapyard | Entered Materials 3663 | -10/Materials | Evolved 1 slot: Power x1 3664 | -10/Materials | Build established: Hacker-Mutant 3721 | -10/Materials | Identified exit to Materials 3721 | -10/Materials | Discovered exit to Materials (range 18) 3864 | -10/Materials | Entered another Materials area 3864 | -9/Materials | Evolved 2 slots: Utility x2 3879 | -9/Materials | Identified exit to Storage 3879 | -9/Materials | Discovered exit to Storage (range 15) 4224 | -9/Materials | Discovered exit to Storage (range 11) 4228 | -9/Materials | Identified exit to Mines 4228 | -9/Materials | Discovered exit to Mines (range 13) 4773 | -9/Materials | Entered Storage 5156 | -9/Storage | Crushed by falling debris 5175 | -9/Storage | Core integrity fell below 50% 5176 | -9/Storage | Destroyed 7 combat bots 5772 | -9/Storage | Core integrity fell below 20% 5808 | -9/Storage | Destroyed by Y-45 Defender with Beam Rifle Last Messages --------------- 05689_ K-01 Serf collects debris. 05690_ Acquired 18 matter. 05691_ K-01 Serf collects debris. 05693_ K-01 Serf destroyed. 05698_ Acquired 9 matter. 05700_ K-01 Serf destroyed. 05700_ Compression Vault explodes. 05708_ A-02 Transporter destroyed. 05723_ The unstable cave ceiling collapses. 05735_ K-01 Serf collects debris. 05788_ Mni. Grenade Launcher destroyed. 05789_ U-05 Engineer lays Concrete. 05799_ Acquired 92 matter. 05801_ Identified Imp. EM Shotgun. 05802_ G-34 Mercenary suffers critical hit (Burn). 05805_ Arm. Wheel destroyed. 05805_ G-34 Mercenary destroyed. 05807_ Imp. EM Shotgun severed. 05808_ L-31 Rogue destroyed. Map ----- +----------------------------------------------------+ | | | | | | | | | | | | | ?#########????????????????????? | | ?# #????????????????????? | | ?# #?"""????????????????? | | ?# #?"R"#???????????????? | | ?# ##" "#???????????????? | | ?####;##+# ?####+########## | | ????# # """ + | | ????# # """ # | | ????# #] """ # | | ????# # + ???? | | ????# # # #????????# | | ????# #"##### #????##### | | ????# ####?# | | #####+ # # ### "" | | # !!! ### "? | | # Y; !!! + "? | | # =*%# !! ## ### "? | | # [#^ # ## "? | | # %*# # ## "" | | #[ @# # ## | | ######## """ # ## | | ????# """ + ###### | | ????# """ # #????? | | ????# ##+########## | | ????# [ | | ????# ###T#### ##### ##?? | | ????# #?###### # # ##?? | | ????# #?#### # # ## ##?? | | ????# ### #[## ## ##?? | | ????# ## # ##+##### ##+##+#### | | ????# ## # # | | ????# # ! ##[# """""" | | ????# # ## # ]!]/"? | | ????# # # + # ]![!"? | | ?####+# # """ # # """"" | | ?# # "G # # | | ?# # """ + # | | ?#=!! # # *# | | ?# ==[ # ##+##### # ###### | | ### #### = [ ##????? | | = # ######## ####??? | | + # # # #??? | | = [ # # # ## #??? | | [ + # #??? | +----------------------------------------------------+ Best States ------------- Heat Dissipation 28 Energy Generation 17 Energy Capacity 415 Matter Stores 400 Matter Capacity 400 Sight Range 16 Terrain Scan Density 10 ECM Strength 1 Resistance: KI 35 Resistance: TH 35 Resistance: EX 35 Resistance: EM 35 Resistance: I 35 Resistance: S 35 Resistance: P 35 Power Shielding 33 Weapon Shielding 33 Evasion (%) 55 Offensive Hacking 20 Item Schematics ----------------- Deuterium Engine | -9/Storage | Hacked Robot Schematics ------------------ None Fabricated ------------ Nothing Alien Tech Used ----------------- None Achievements -------------- Dynamic Key Oops Shopping List Storm Trooper Unlikely Earthworm Challenges ------------ None Game ------ Seed SingularityJunkClaws Manual? 0 Play Time 00:49:27 Cumulative 3.5 hours Start 2024.12.29 @ 14:33:22 End 2024.12.29 @ 18:49:01 Sessions 2 Manual Loads 0 Difficulty Explorer Special Mode None Game No. 2 Rogue 0 Adventurer 0 Explorer 2 Win Type - Total 0 Types 0/0/0/0/0/0/0/0/0 Lore% 1 Gallery% 10 Achievement% 12 Wizard Run 0 Options --------- Layout 1 ASCII 0 Keyboard 0 Movement Mouse Keybinds 0 Fullscreen 1 Font 24/Smallcaps Map View 50x35 Zoom Use 0% Tactical HUD 1 Map Filters NONE Filters NONE Steam 1 RUN: 881f3fce-cf74-4122-a35f-d9ec1123a2c4